Cogmind - Beta 9 @@@ ROGUE MODE // 2019.10.22 @ 21:35:04 Player: ModulinMyGlobulin Result: Self-destructed Performance ------------- Evolutions (1) 500 Regions Visited (3) 600 Robots Destroyed (23) 115 Value Destroyed (444) 444 Prototype IDs (2) 40 Alien Tech Used (0) 0 Bonus (0) 0 TOTAL SCORE: 1699 Bonus ------- None Cogmind --------- Core Integrity 74/400 Matter 212/300 Energy 85/100 System Corruption 1% Temperature Cool (8) Location -9/Mines Parts ------- Power (1) Propulsion (4) Aluminum Leg Utility (2) Medium Storage Unit Medium Storage Unit Weapon (2) Inventory (12) Light Ion Engine Heat Sink Small Storage Unit Large Storage Unit Large Storage Unit Signal Interpreter Light Armor Plating Grenade Launcher Peak State ------------ Power Improved Ion Engine Propulsion Improved Treads Improved Treads Wheel Compact Wheel Utility Medium Storage Unit Medium Storage Unit Weapon Improved EM Shotgun Assault Rifle Inventory Light Ion Engine Light Ion Engine Aluminum Leg Aluminum Leg Heat Sink Small Storage Unit Small Storage Unit Large Storage Unit Large Storage Unit Light Armor Plating Light Assault Rifle Grenade Launcher [Rating: 15] Favorites ----------- Power Light Ion Engine Engine Light Ion Engine Propulsion Wheel Treads Improved Treads Leg Aluminum Leg Wheel Wheel Utility Medium Storage Unit Storage Medium Storage Unit Weapon Light Assault Rifle Energy Gun Improved Medium Laser Ballistic Gun Light Assault Rifle Launcher Grenade Launcher Slashing Weapon Mining Claw Build | -11 -10 -9 -9 ------- Run | Scr Mat Mat Min Slots Evolved 2 | . . 2 . Power . | . . . . Propulsion 2 | . . 2 . Utility . | . . . . Weapon . | . . . . Parts Attached 27 | 7 . 15 5 Power 3 | 1 . 1 1 Engine 3 | 1 . 1 1 Core . | . . . . Reactor . | . . . . Propulsion 8 | 2 . 4 2 Treads 4 | . . 4 . Leg 2 | . . . 2 Wheel 2 | 2 . . . Hover . | . . . . Flight . | . . . . Utility 5 | 2 . 3 . Device . | . . . . Storage 5 | 2 . 3 . Processor . | . . . . Hackware . | . . . . Protection . | . . . . Artifact . | . . . . Weapon 11 | 2 . 7 2 Energy Gun 3 | . . 2 1 Energy Cannon . | . . . . Ballistic Gun 5 | 2 . 3 . Ballistic Cannon . | . . . . Launcher 2 | . . 2 . Special Weapon . | . . . . Impact Weapon . | . . . . Slashing Weapon 1 | . . . 1 Piercing Weapon . | . . . . Special Melee Weapon . | . . . . Unidentified Prototypes 2 | . . 2 . Parts Lost 12 | . . 6 6 Power 2 | . . 1 1 Propulsion 5 | . . 3 2 Utility . | . . . . Weapon 5 | . . 2 3 Highest Loss Streak 6 | . . 6 6 Average Slot Usage (%) 90 | . 100 92 80 Engine 10 | . 14 9 10 Treads 12 | . . 21 8 Leg 6 | . . . 20 Wheel 15 | . 28 18 . Storage 23 | . 28 22 22 Ballistic Gun 17 | . 28 16 9 Slashing Weapon 3 | . . . 10 Naked Turns . | . . . . Heaviest Build 30 | 14 14 30 22 Greatest Support 26 | 26 26 26 23 Greatest Overweight (x) 3 | 3 . 1 1 Average Overweight (x) . | . . . . Largest Inventory Capacity 14 | 8 8 14 12 Average Capacity 10 | 6 8 11 12 Most Carried 12 | 6 8 12 11 Average Carried 9 | 4 7 10 9 Final Capacity 12 | . . . 12 Final Carried 8 | . . . 8 Class Distribution -------------------- 100% | Mutant Dominant Class ---------------- Mutant | -10/Materials Mutant | -9/Materials Mutant | -9/Mines Resources | -11 -10 -9 -9 ----------- Run | Scr Mat Mat Min Matter Collected 484 | 205 97 80 102 Remotely . | . . . . Salvage Created 472 | 67 86 319 . Parts 38 | 3 6 29 . Haulers Intercepted 1 | . . 1 . Recyclers Shooed 2 | . . 1 1 Parts Field Recycled . | . . . . Retrieved Matter . | . . . . Parts Self-Destructed . | . . . . Prevented . | . . . . Kills | -11 -10 -9 -9 ------- Run | Scr Mat Mat Min Combat Hostiles Destroyed 18 | . 4 14 . Guns 6 | . 4 2 . AOE 12 | . . 12 . Classes Destroyed 8 | 1 2 5 . Builder 1 | . . 1 . Hauler 1 | . . 1 . Recycler 1 | 1 . . . Operator 1 | . . 1 . Watcher 1 | . . 1 . Swarmer 11 | . 3 8 . Grunt 6 | . 1 5 . Sentry 1 | . . 1 . Best Kill Streak 7 | 1 2 7 . Combat Bots Only 5 | . 2 5 . Max Kills in Single Turn 5 | 1 1 5 . Gunslinging . | . . . . Exploded 5 | . . 5 . Melee . | . . . . Uniques/NPCs Destroyed . | . . . . Combat | -11 -10 -9 -9 -------- Run | Scr Mat Mat Min Damage Taken 1538 | . 146 881 511 Core 418 | . 92 152 174 Absorbed by Shields . | . . . . Core Remaining (%) 81 | 100 63 . . Volleys Fired 41 | 1 7 29 4 Largest 2 | 2 2 2 1 Hottest 76 | 40 40 76 65 Shots Fired 69 | 2 14 49 4 Gun 65 | 2 14 45 4 Cannon . | . . . . Launcher 4 | . . 4 . Special . | . . . . Kinetic 56 | 2 14 37 3 Thermal 9 | . . 8 1 Explosive 4 | . . 4 . Electromagnetic . | . . . . Robot Hit Streak 12 | 2 7 12 3 Robot Miss Streak 4 | . 3 4 2 Penetration Max . | . . . . Secondary Targets 1 | . 1 . . Max Gunslinging Chain 1 | . 1 . . Shots Hit Robots 35 | 2 8 20 5 Core Hits 32 | 2 5 24 1 Critical Hits 2 | . . 2 . Critical Kills . | . . . . Critical Parts Destroyed 2 | . . 2 . Melee Attacks 3 | . . . 3 Impact . | . . . . Slashing 3 | . . . 3 Piercing . | . . . . Sneak Attacks 1 | . . . 1 Combat Hostiles . | . . . . Follow-up Attacks . | . . . . Damage Inflicted 1776 | 24 85 1527 140 Guns 393 | 24 85 264 20 Cannons . | . . . . Explosions 1263 | . . 1263 . Melee 120 | . . . 120 Ramming . | . . . . Kinetic 326 | 24 85 197 20 Thermal 67 | . . 67 . Explosive 1263 | . . 1263 . Electromagnetic . | . . . . Impact . | . . . . Slashing 120 | . . . 120 Piercing . | . . . . Highest Corruption 1 | . . . 1 Average Corruption 1 | . . . 1 Corruption Purged . | . . . . Overload Shots . | . . . . Overflow Damage 214 | . . 185 29 Projectiles . | . . . . Explosions 185 | . . 185 . Melee 29 | . . . 29 Knockbacks . | . . . . Impact . | . . . . Kinetic . | . . . . Secondary . | . . . . Self-Inflicted Damage 119 | . . 119 . Shots 2 | . . 2 . Rammed . | . . . . Targets Rammed . | . . . . Kicked . | . . . . Crushed . | . . . . Highest Temperature 93 | . 18 93 8 Average Temperature 39 | . 10 48 6 Received Heat Transfer 264 | . 48 216 . Siege Activations . | . . . . Robots Corrupted . | . . . . Combat Hostiles . | . . . . Parts Fried . | . . . . Impact Corruptions . | . . . . Robots Melted . | . . . . Combat Hostiles . | . . . . Parts Melted . | . . . . Heat Transferred 148 | . . 148 . Parts Sabotaged . | . . . . Parts Stolen . | . . . . Parts Stripped . | . . . . Power Chain Reactions . | . . . . Missiles Intercepted . | . . . . Alert | -11 -10 -9 -9 ------- Run | Scr Mat Mat Min Peak Influence 414 | 5 108 414 161 Average Influence 126 | 1 38 182 154 Maximum Alert Level 2 | . . 2 . Low Security (%) 79 | . . . . Level 1 17 | . . . . Level 2 3 | . . . . Level 3 . | . . . . Level 4 . | . . . . Level 5 . | . . . . High Security . | . . . . Max Security . | . . . . Squads Dispatched 3 | . 1 1 1 Investigation 1 | . 1 . . Extermination . | . . . . Reinforcement 2 | . . 1 1 Assault . | . . . . Garrison . | . . . . Intercept . | . . . . Construction Impeded 1 | . . . 1 Haulers Reinforced . | . . . . Stealth | -11 -10 -9 -9 --------- Run | Scr Mat Mat Min Distress Signals 2 | . . 2 . Communications Jammed . | . . . . Distress Signals . | . . . . Times Spotted 45 | . 9 22 14 Peak Tracking Total 9 | . 5 8 9 Tactical Retreats 3 | . 1 2 . Traps | -11 -10 -9 -9 ------- Run | Scr Mat Mat Min Traps Triggered 1 | . 1 . . Indirectly . | . . . . Trap Hack Attempts . | . . . . Triggered . | . . . . Disarmed . | . . . . Reprogrammed . | . . . . Reused . | . . . . Traps Extracted . | . . . . Installed . | . . . . Triggered . | . . . . Machines | -11 -10 -9 -9 ---------- Run | Scr Mat Mat Min Machines Disabled 4 | . . 4 . Max in Single Turn 2 | . . 2 . Machines Sabotaged . | . . . . Garrisons Compromised . | . . . . Overloaded Fab Kills . | . . . . Fab Network Shutdowns . | . . . . Hacking | -11 -10 -9 -9 --------- Run | Scr Mat Mat Min Machines Accessed . | . . . . Terminals . | . . . . Fabricators . | . . . . Repair Stations . | . . . . Recycling Units . | . . . . Scanalyzers . | . . . . Garrison Access . | . . . . Total Hacks . | . . . . Successful . | . . . . Failed . | . . . . Catastrophic . | . . . . Database Lockouts . | . . . . Manual . | . . . . Terminals . | . . . . Fabricators . | . . . . Repair Stations . | . . . . Recycling Units . | . . . . Scanalyzers . | . . . . Garrison Access . | . . . . Terminal Hacks . | . . . . Fabricator Hacks . | . . . . Repair Station Hacks . | . . . . Recycling Unit Hacks . | . . . . Scanalyzer . | . . . . Garrison Access Hacks . | . . . . Unauthorized Hacks . | . . . . Terminals . | . . . . Fabricators . | . . . . Repair Stations . | . . . . Recycling Units . | . . . . Scanalyzers . | . . . . Garrison Access . | . . . . Data Cores Recovered . | . . . . Used . | . . . . Hacking Detections . | . . . . Full Trace Events . | . . . . Feedback Events . | . . . . Feedback Blocked . | . . . . Robot Schematics Acquired . | . . . . Robots Built . | . . . . Matter . | . . . . Time . | . . . . Total Robot Build Rating . | . . . . Part Schematics Acquired . | . . . . Parts Built . | . . . . Matter . | . . . . Time . | . . . . Total Part Build Rating . | . . . . Parts Repaired . | . . . . Time . | . . . . Parts Recycled . | . . . . Recycled Matter . | . . . . Retrieved Matter . | . . . . Retrieved Components . | . . . . Parts Scanalyzed . | . . . . Part Schematics Acquired . | . . . . Parts Damaged . | . . . . Bothacking | -11 -10 -9 -9 ------------ Run | Scr Mat Mat Min Used RIF Installer . | . . . . Robots Hacked . | . . . . Non-combat . | . . . . Combat . | . . . . Robot Hacks Applied . | . . . . Relay Couplers Released . | . . . . Robots Rewired . | . . . . Allies Hacked . | . . . . Hacks Repelled . | . . . . Allies | -11 -10 -9 -9 -------- Run | Scr Mat Mat Min Total Allies . | . . . . Largest Group . | . . . . Highest-Rated Group . | . . . . Highest-Rated Ally . | . . . . Total Orders . | . . . . Ally Attacks . | . . . . Total Damage . | . . . . Kills . | . . . . Allies Corrupted . | . . . . Allies Melted . | . . . . Intel | -11 -10 -9 -9 ------- Run | Scr Mat Mat Min Robot Analysis Total . | . . . . Derelict Logs Recovered . | . . . . Drone Launches . | . . . . Drone Recoveries . | . . . . Exploration | -11 -10 -9 -9 ------------- Run | Scr Mat Mat Min Turns Passed 625 | 68 127 261 169 Spaces Moved 406 | 48 110 151 97 Core 20 | 20 . . . Treads 16 | . . 15 1 Legs 96 | . . . 96 Wheels 274 | 28 110 136 . Hover . | . . . . Flight . | . . . . Fastest Speed 50 | 50 90 90 150 Average Speed 109 | 102 90 100 150 Slowest Speed 200 | 200 90 160 160 Overloaded Moves . | . . . . Propulsion Burnouts . | . . . . Robots Hopped . | . . . . Cave-ins Triggered . | . . . . Exploration Rate (%) 18 | 3 30 22 20 Regions Visited 3 Branch Regions 1 Pre-discovered Areas . | . . . . Known Exits Taken . | . . . . Unknown Exits Taken 3 | 1 1 1 . Scrap Searched . | . . . . Spaces Dug . | . . . . Terrain Destroyed 75 | . . 75 . Melee . | . . . . Projectile . | . . . . AOE 75 | . . 75 . Actions | -11 -10 -9 -9 --------- Run | Scr Mat Mat Min Total 509 | 61 125 212 111 Wait 16 | . 7 9 . Move 403 | 47 109 150 97 Hop . | . . . . Pick Up 14 | 6 2 4 2 Fast Attach 9 | 7 . 2 . Attach 8 | . . 3 5 Detach . | . . . . Swap 10 | . . 10 . Drop 5 | . . 5 . Fire 41 | 1 7 29 4 Melee 3 | . . . 3 Ram . | . . . . Kick . | . . . . Crush . | . . . . Escape Stasis . | . . . . Rewire . | . . . . Trap . | . . . . Miscellaneous . | . . . . Route ------- -11/Scrapyard -10/Materials -9/Materials -9/Mines History --------- Turn | Location | Event 7 | -11/Scrapyard | Discovered new exit (range 14) 69 | -11/Scrapyard | Entered Materials 194 | -10/Materials | Discovered new exit (range 3) 196 | -10/Materials | Entered another Materials area 196 | -9/Materials | Evolved 2 slots: Propulsion x2 374 | -9/Materials | Discovered new exit (range 16) 390 | -9/Materials | Build established: Mutant 457 | -9/Materials | Entered Mines 465 | -9/Mines | Lost 6 parts (1p3n2w) 549 | -9/Mines | Assembled infested the area 598 | -9/Mines | Core integrity fell below 50% 624 | -9/Mines | Core integrity fell below 20% 626 | -9/Mines | Self-destructed Last Messages --------------- 00599_ C-30 ARC bursts open, deploying its payload. 00599_ D-53 Grenadier unfolds itself. 00601_ Lgt. Assault Rifle destroyed. 00601_ Acquired 102 matter. 00607_ D-53 Grenadier destroyed. 00608_ Sneak attack on U-05 Engineer. 00608_ Destroyed Lgt. Ion Engine. 00609_ ALERT: Construction progress impeded, dispatching reinforcements to local area. 00610_ The unstable cave ceiling collapses. 00610_ Lgt. Ion Engine destroyed. 00611_ The unstable cave ceiling collapses. 00612_ U-05 Engineer destroyed. 00614_ Aluminum Leg destroyed. 00620_ Mining Claw destroyed. 00620_ System corrupted by crushing effect (+1). 00620_ Knocked back. 00624_ as-78841 destroyed. 00625_ U-05 Engineer system terminally corrupted. 00625_ Particle Gun destroyed. Map ----- +----------------------------------------------------+ | | | ?????????????????????????????????????????????????? | | ?????????????????????????????????????????????????? | | ?????????????????????????????????????????????????? | | ?????????????????????????????????????????????????? | | ??????????####????????########################???? | | ?????????## #????????# ##?## | | ??????#### #????????# ### | | ??????# ##???????# ################## | | ??????# ### ##??????# ##??????????????# # | | ####### #?# ######## ##????????????## ## | | """ ## #?# | #???????#### ##? | | """ ## ### ######### ####### ##?? | | """ ##???????## # # % ####??? | | ##########??????????# # = #?????? | | #???????????????????# =%]% ##??????? | | #????????????????????# ! #??????? | | ######????????????????????###%# #???????? | | ????????????????????????????#| ##????????? | | ??????????????????????????### #??#####?????????? | | ??????????????????????????# ###????????????????? | | ??????????????????????????# ###??????????????????? | | ??????????????????????????# #????????????????????? | | ??????????????????????????# #????????????????????? | | ????????????????????# #####a#????????????????????? | | ????????????????????# @a #????????????????????? | | ????????????????????# #######????????????????????? | | ?????????????????????????????????????????????????? | | ?????????????????????????????????????????????????? | | ?????????????????????????????????????????????????? | | ?????????????????????????????????????????????????? | | ?????????????????????????????????????????????????? | | ?????????????????????????????????????????????????? | | ?????????????????????????????????????????????????? | | ?????????????????????????????????????????????????? | | ?????????????????????????????????????????????????? | | ?????????????????????????????????????????????????? | | ?????????????????????????????????????????????????? | | ?????????????????????????????????????????????????? | | ?????????????????????????????????????????????????? | | ?????????????????????????????????????????????????? | | ?????????????????????????????????????????????????? | | ?????????????????????????????????????????????????? | | ?????????????????????????????????????????????????? | | ?????????????????????????????????????????????????? | | ?????????????????????????????????????????????????? | | ?????????????????????????????????????????????????? | | ?????????????????????????????????????????????????? | | ?????????????????????????????????????????????????? | | ?????????????????????????????????????????????????? | +----------------------------------------------------+ Best States ------------- Heat Dissipation 28 Energy Generation 12 Energy Capacity 265 Matter Stores 300 Matter Capacity 300 Sight Range 16 Terrain Scan Density 10 Evasion (%) 50 Recoil Reduction 2 Item Schematics ----------------- None Robot Schematics ------------------ None Fabricated ------------ Nothing Alien Tech Used ----------------- None Achievements -------------- None Challenges ------------ None Game ------ Seed CannonHypercooledDiverter Manual? 0 Play Time 00:11:19 Cumulative 38.5 hours Start 2019.10.22 @ 21:09:53 End 2019.10.22 @ 21:35:04 Sessions 1 Manual Loads 0 Difficulty Rogue Special Mode None Game No. 103 Rogue 103 Adventurer 0 Explorer 0 Win Type - Total 0 Types 0/0/0/0/0/0/0 Lore% 34 Gallery% 35 Achievement% 16 Wizard Run 0 Options --------- ASCII 0 Keyboard 0 Movement Numpad Keybinds 0 Fullscreen 1 Font 18/SmallcapsGlow Map View 76x50 Tactical HUD 1 Map Filters NONE Filters NONE Steam 1 RUN: 378a4892-5868-4ace-88ab-2650b6ba8230